Cogmind - Beta 12 *** ADVENTURER MODE // 2024.02.17 @ 02:02:20 Player: Lucyna Result: Destroyed by Y-45 Defender with Beam Rifle Performance ------------- Evolutions (1) 500 Regions Visited (3) 600 Robots Destroyed (10) 50 Value Destroyed (311) 311 Prototype IDs (0) 0 Alien Tech Used (0) 0 Bonus (0) 0 TOTAL SCORE: 1461 Bonus ------- None Cogmind --------- Core Integrity 0/400 Matter 237/300 Energy 100/100 System Corruption 0% Temperature Cool (9) Movement Core (400) Ox7 Location -9/Materials Parts ------- > --- POWER (1) -------- (None) > --- PROPULSION (2) --- (None) > --- UTILITY (4) ------ Large Storage Unit > --- WEAPON (2) ------- Heavy Assault Rifle > --- INVENTORY (15) --- Blade Trap Blade Trap Blade Trap Peak State ------------ > --- POWER ------------ Light Ion Engine > --- PROPULSION ------- Aluminum Leg Compact Wheel > --- UTILITY ---------- Structural Scanner > --- WEAPON ----------- Light Assault Rifle Rocket Launcher > --- INVENTORY -------- Flight Unit Mining Laser Blade Trap Blade Trap Blade Trap [Rating: 7] Favorites ----------- Power Ion Engine Engine Ion Engine Propulsion Wheel Leg Aluminum Leg Wheel Wheel Flight Unit Flight Unit Utility Structural Scanner Device Structural Scanner Storage Large Storage Unit Weapon Grenade Launcher Energy Gun Medium Laser Ballistic Gun Light Assault Rifle Launcher Grenade Launcher Special Weapon Mining Laser Build | -11 -10 -10 -9 ------- Run | Jun Mat Min Mat Slots Evolved 2 | . . . 2 Power . | . . . . Propulsion . | . . . . Utility 2 | . . . 2 Weapon . | . . . . Parts Attached 19 | 3 5 7 4 Power 2 | . 1 1 . Engine 2 | . 1 1 . Core . | . . . . Reactor . | . . . . Propulsion 7 | 2 1 3 1 Treads . | . . . . Leg 2 | 1 . 1 . Wheel 3 | 1 1 1 . Hover . | . . . . Flight 2 | . . 1 1 Utility 2 | . . 1 1 Device 1 | . . 1 . Storage 1 | . . . 1 Processor . | . . . . Hackware . | . . . . Protection . | . . . . Artifact . | . . . . Weapon 8 | 1 3 2 2 Energy Gun 2 | . 2 . . Energy Cannon . | . . . . Ballistic Gun 3 | 1 . 1 1 Ballistic Cannon . | . . . . Launcher 2 | . 1 1 . Special Weapon 1 | . . . 1 Impact Weapon . | . . . . Slashing Weapon . | . . . . Piercing Weapon . | . . . . Special Melee Weapon . | . . . . Unidentified Prototypes . | . . . . Parts Lost 9 | . . 3 6 Power 2 | . . 2 . Propulsion 3 | . . 1 2 Utility 1 | . . . 1 Weapon 3 | . . . 3 Highest Loss Streak 6 | . . 1 6 To Critical Strikes . | . . . . Average Slot Usage (%) 70 | . 69 74 50 Engine 11 | . 13 11 . Leg 6 | . 14 4 9 Wheel 12 | . 14 13 7 Flight 4 | . . 6 . Device 7 | . . 9 10 Energy Gun 5 | . 13 4 . Ballistic Gun 8 | . 1 9 10 Launcher 13 | . 12 14 8 Naked Turns . | . . . . Heaviest Build 26 | 1 10 10 26 Greatest Support 16 | 10 10 16 16 Greatest Overweight (x) 7 | . . 2 7 Average Overweight (x) . | . . . . Largest Inventory Capacity 15 | 5 5 5 15 Average Capacity 5 | 5 5 5 7 Most Carried 5 | 5 5 5 5 Average Carried 3 | 3 2 4 4 Final Capacity 15 | 5 5 5 15 Final Carried 5 | 5 4 5 3 Class Distribution -------------------- 100% | Mutant Dominant Class ---------------- Mutant | -10/Materials Mutant | -10/Mines Mutant | -9/Materials Resources | -11 -10 -10 -9 ----------- Run | Jun Mat Min Mat Matter Collected 431 | 238 40 139 14 Remotely . | . . . . Salvage Created 285 | 36 . 176 73 Parts 16 | 3 . 6 7 Haulers Intercepted . | . . . . Recyclers Shooed 1 | . . 1 . Parts Field Recycled . | . . . . Retrieved Matter . | . . . . Parts Self-Destructed . | . . . . Prevented . | . . . . Kills | -11 -10 -10 -9 ------- Run | Jun Mat Min Mat Combat Hostiles Destroyed 7 | 1 . 4 2 Guns 2 | 1 . . 1 AOE 5 | . . 4 1 Classes Destroyed 5 | 1 . 2 2 Tunneler 1 | . . 1 . Recycler 1 | . . 1 . Operator 1 | . . . 1 Grunt 6 | 1 . 4 1 Sentry 1 | . . . 1 Best Kill Streak 3 | 1 . 3 2 Combat Bots Only 2 | 1 . 2 1 Max Kills in Single Turn 3 | 1 . 3 1 Gunslinging . | . . . . Exploded 2 | . . 2 1 Melee . | . . . . Uniques/NPCs Destroyed . | . . . . Combat | -11 -10 -10 -9 -------- Run | Jun Mat Min Mat Damage Taken 1171 | 109 . 309 753 Core 510 | 43 . 60 407 Absorbed by Shields . | . . . . Core Remaining (%) 70 | 82 . 58 . Volleys Fired 26 | 8 1 6 11 Largest 2 | 1 2 2 2 Hottest 100 | 20 80 80 100 Shots Fired 38 | 8 2 12 16 Gun 25 | 8 1 6 10 Cannon . | . . . . Launcher 12 | . 1 6 5 Special 1 | . . . 1 Kinetic 21 | 8 . 3 10 Thermal 5 | . 1 3 1 Explosive 12 | . 1 6 5 Electromagnetic . | . . . . Robot Hit Streak 9 | 3 . 9 9 Robot Miss Streak 2 | 1 . 1 2 Penetration Max . | . . . . Secondary Targets . | . . . . Shots Hit Robots 26 | 5 . 10 11 Core Hits 22 | 4 . 10 8 Critical Kills . | . . . . Critical Parts Destroyed . | . . . . Critical Strikes . | . . . . Melee Attacks . | . . . . Impact . | . . . . Slashing . | . . . . Piercing . | . . . . Sneak Attacks . | . . . . Combat Hostiles . | . . . . Follow-up Attacks . | . . . . Damage Inflicted 860 | 42 . 463 355 Guns 149 | 37 . 40 72 Cannons . | . . . . Explosions 706 | . . 423 283 Melee . | . . . . Ramming 5 | 5 . . . Kinetic 125 | 37 . 16 72 Thermal 56 | . . 24 32 Explosive 674 | . . 423 251 Electromagnetic . | . . . . Impact . | . . . . Slashing . | . . . . Piercing . | . . . . Highest Corruption . | . . . . Average Corruption . | . . . . Corruption Purged . | . . . . Corruption Blocked . | . . . . Overload Shots . | . . . . Overflow Damage 14 | . . 11 3 Projectiles . | . . . . Explosions 14 | . . 11 3 Melee . | . . . . Knockbacks . | . . . . Impact . | . . . . Kinetic . | . . . . Secondary . | . . . . Self-Inflicted Damage 151 | . . 145 6 Shots 7 | . . 6 1 Rammed . | . . . . Targets Rammed 2 | 2 . . . Kicked 2 | 2 . . . Crushed . | . . . . Highest Temperature 75 | 1 18 75 32 Average Temperature 19 | 1 12 23 17 Received Heat Transfer 444 | 78 . 120 246 Siege Activations . | . . . . Robots Corrupted . | . . . . Combat Hostiles . | . . . . Parts Fried . | . . . . Impact Corruptions . | . . . . Robots Melted . | . . . . Combat Hostiles . | . . . . Parts Melted . | . . . . Heat Transferred 124 | . . 74 50 Parts Sabotaged . | . . . . Parts Stolen . | . . . . Parts Stripped . | . . . . Power Chain Reactions . | . . . . Missiles Intercepted . | . . . . Alert | -11 -10 -10 -9 ------- Run | Jun Mat Min Mat Peak Influence 132 | 20 47 64 132 Initial 11 | . 11 . . Average 20 | 4 17 19 50 Maximum Alert Level . | . . . . Low Security (%) 100 | 100 100 100 100 Level 1 . | . . . . Level 2 . | . . . . Level 3 . | . . . . Level 4 . | . . . . Level 5 . | . . . . High Security . | . . . . Max Security . | . . . . Squads Dispatched 2 | . . 1 1 Investigation 1 | . . 1 . Extermination . | . . . . Reinforcement 1 | . . . 1 Assault . | . . . . Garrison . | . . . . Intercept . | . . . . Searches Triggered . | . . . . Construction Impeded . | . . . . Haulers Reinforced . | . . . . Active Scanning Responses . | . . . . Cargo Convoy Interrupts . | . . . . Stealth | -11 -10 -10 -9 --------- Run | Jun Mat Min Mat Distress Signals 1 | . . . 1 Communications Jammed . | . . . . Distress Signals . | . . . . Times Spotted 16 | 1 1 5 9 Peak Tracking Total 4 | 1 1 3 4 Tactical Retreats 1 | . . . 1 Traps | -11 -10 -10 -9 ------- Run | Jun Mat Min Mat Traps Triggered . | . . . . Indirectly . | . . . . Trap Hack Attempts . | . . . . Triggered . | . . . . Disarmed . | . . . . Reprogrammed . | . . . . Reused . | . . . . Traps Extracted . | . . . . Installed . | . . . . Triggered . | . . . . Most Traps Carried 3 | . . 3 3 Machines | -11 -10 -10 -9 ---------- Run | Jun Mat Min Mat Machines Disabled 2 | . 1 . 1 Max in Single Turn 1 | . 1 . 1 Machines Repaired . | . . . . Machines Sabotaged . | . . . . Overloaded Fab Kills . | . . . . Hacking | -11 -10 -10 -9 --------- Run | Jun Mat Min Mat Machines Accessed 2 | . 1 1 . Terminals 1 | . 1 . . Fabricators . | . . . . Repair Stations . | . . . . Recycling Units . | . . . . Scanalyzers . | . . . . Garrison Access . | . . . . Total Hacks 4 | . 3 1 . Successful 4 | . 3 1 . Failed . | . . . . Catastrophic . | . . . . Database Lockouts . | . . . . Manual 2 | . . 2 . Terminals 3 | . 3 . . Fabricators . | . . . . Repair Stations . | . . . . Recycling Units . | . . . . Scanalyzers . | . . . . Garrison Access . | . . . . Terminal Hacks 4 | . 3 1 . Record 3 | . 3 . . Open Door 1 | . . 1 . Fabricator Hacks . | . . . . Repair Station Hacks . | . . . . Recycling Unit Hacks . | . . . . Scanalyzer . | . . . . Garrison Access Hacks . | . . . . Unauthorized Hacks . | . . . . Terminals . | . . . . Fabricators . | . . . . Repair Stations . | . . . . Recycling Units . | . . . . Scanalyzers . | . . . . Garrison Access . | . . . . Data Cores Recovered . | . . . . Used . | . . . . Hacking Detections . | . . . . Full Trace Events . | . . . . Feedback Events . | . . . . Feedback Blocked . | . . . . Robot Schematics Acquired . | . . . . Robots Built . | . . . . Authchips . | . . . . Time . | . . . . Total Robot Build Rating . | . . . . Part Schematics Acquired . | . . . . Parts Built . | . . . . Authchips . | . . . . Time . | . . . . Total Part Build Rating . | . . . . Parts Repaired . | . . . . Time . | . . . . Parts Recycled . | . . . . Recycled Matter . | . . . . Retrieved Matter . | . . . . Retrieved Components . | . . . . Parts Scanalyzed . | . . . . Part Schematics Acquired . | . . . . Parts Damaged . | . . . . Bothacking | -11 -10 -10 -9 ------------ Run | Jun Mat Min Mat Used RIF Installer . | . . . . Robots Hacked . | . . . . Non-combat . | . . . . Combat . | . . . . Robot Hacks Applied . | . . . . Relay Couplers Released . | . . . . Fabnet Peak Effective % . | . . . . Robots Rewired . | . . . . Allies Hacked . | . . . . Hacks Repelled . | . . . . Allies | -11 -10 -10 -9 -------- Run | Jun Mat Min Mat Total Allies . | . . . . Largest Group . | . . . . Highest-Rated Group . | . . . . Highest-Rated Ally . | . . . . Total Orders . | . . . . Ally Attacks . | . . . . Total Damage . | . . . . Kills . | . . . . Allies Corrupted . | . . . . Allies Melted . | . . . . Intel | -11 -10 -10 -9 ------- Run | Jun Mat Min Mat Robot Analysis Total . | . . . . Derelict Logs Recovered 2 | . . 2 . Drone Launches . | . . . . Drone Recoveries . | . . . . Exploration | -11 -10 -10 -9 ------------- Run | Jun Mat Min Mat Turns Passed 2663 | 234 451 1745 233 Spaces Moved 2268 | 218 366 1520 164 Core 34 | 25 . 1 8 Treads . | . . . . Legs 608 | 101 362 145 . Wheels 1324 | 92 4 1076 152 Hover . | . . . . Flight 302 | . . 298 4 Fastest Speed 50 | 50 80 80 100 Average Speed 112 | 95 119 112 122 Slowest Speed 530 | 120 120 205 530 Overloaded Moves . | . . . . Propulsion Burnouts . | . . . . Robots Hopped . | . . . . Cave-ins Triggered . | . . . . Exploration Rate (%) 36 | 10 26 99 12 Regions Visited 3 Branch Regions 1 Pre-discovered Areas . | . . . . Known Exits Taken . | . . . . Unknown Exits Taken 3 | 1 1 1 . Scrap Searched 1 | . . 1 . Spaces Dug . | . . . . Terrain Destroyed 118 | . 6 48 64 Melee . | . . . . Projectile 1 | . . . 1 AOE 117 | . 6 48 63 Terrain Rammed . | . . . . Walls Destroyed . | . . . . Machines Disabled . | . . . . Actions | -11 -10 -10 -9 --------- Run | Jun Mat Min Mat Total 2341 | 238 379 1543 181 Wait 1 | . . 1 . Move 2265 | 217 365 1519 164 Hop . | . . . . Pick Up 17 | 8 3 5 1 Fast Attach 4 | . . 3 1 Attach 12 | 3 5 1 3 Detach 3 | . 3 . . Swap 3 | . . 3 . Drop 8 | . 2 5 1 Fire 26 | 8 1 6 11 Melee . | . . . . Ram . | . . . . Kick 2 | 2 . . . Crush . | . . . . Escape Stasis . | . . . . Rewire . | . . . . Trap . | . . . . Miscellaneous . | . . . . Route ------- -11/Junkyard -10/Materials -10/Mines (discovered 3 exits: [*Mat x2] / [*Exi]) -9/Materials History --------- Turn | Location | Event 2 | -11/Junkyard | Met Revision 17 117 | -11/Junkyard | Discovered new exit (range 8) 235 | -11/Junkyard | Entered Materials 320 | -10/Materials | Build established: Mutant 609 | -10/Materials | Discovered new exit (range 15) 686 | -10/Materials | Entered Mines 699 | -10/Mines | Met a Derelict bent on vengeance 757 | -10/Mines | Deemed a non-threat by the Exiles lab entrance 758 | -10/Mines | Discovered new exit (range 5) 814 | -10/Mines | Received a Rocket Launcher from a helpful Derelict 1069 | -10/Mines | Learned 2 Materials zone layouts 1696 | -10/Mines | Found a hidden stash of uninstalled traps 1835 | -10/Mines | Discovered new exit (range 9) 1877 | -10/Mines | Met a Derelict shopkeep closing up shop 2110 | -10/Mines | Discovered new exit (range 7) 2431 | -10/Mines | Entered Materials 2431 | -9/Materials | Evolved 2 slots: Utility x2 2641 | -9/Materials | Core integrity fell below 50% 2654 | -9/Materials | Core integrity fell below 20% 2664 | -9/Materials | Destroyed by Y-45 Defender with Beam Rifle Last Messages --------------- Critical hit (Burn: +37). Lgt. Assault Rifle destroyed. Aluminum Leg destroyed. Mining Laser destroyed. Critical hit (Burn: +37). U-05 Engineer builds a Wall. U-05 Engineer lays Concrete. Acquired Hvy. Assault Rifle. U-05 Engineer lays Concrete. U-05 Engineer builds a Wall. U-05 Engineer builds a Door. U-05 Engineer builds a Wall. Structural Scanner destroyed. U-05 Engineer lays Concrete. The unstable cave ceiling collapses. U-05 Engineer lays Concrete. S-10 Pest destroyed. U-05 Engineer lays Concrete. U-05 Engineer builds a Wall. [Achievement: First Step to Greatness] Map ----- +----------------------------------------------------+ | ????????????????????????????????????????????????? | | ????????????????????????????????????????????????? | | ?????????????????????????####### ???????????? | | ##???????????????????????###########+???????????? | | ######???????????????????# + ???????????? | | ######????????????????????? # ???????????? | | # ##????????????????????? ?? ##?????????? | | # ##?????????????????### ? ##?????????? | | # ######################## ###### ### ???????? | | + ##################### # ### ### ???????? | | # # ???????? | | # + ???????? | | # [ = # ???????? | | #######+#############+## #+ ##### # ???????? | | #### ####### ! # == ### ?????????? | | ???????????????## # """ ##???????????? | | ?????????????????## # """ ##???????????? | | ?????????????????## # """ ##???????????? | | ?????????????????## ! #""" ##???????????? | | ?????????????????## =[ #"T # ???????????? | | ?????????????????##+######""" # ???????????? | | ?????????????????## ###### + ???????????? | | ??????????????????? ###! ####+###### ???????????? | | ??????????????????? ##! ;### ###### ??????????? | | ??????????????????? # ! s ## # ? ###??????????? | | ??????????????????? ## =s@### # T ##??????????? | | ??????????????????? ##! Y% + ###??????????? | | ????????????????????## ! u # ##???????????? | | ????????????????????###### # ?[ ##???????????? | | ???????????????????? #/# ###???????????? | | ???????????????????? #u #???????????? | | ???????????????????? # ???????????? | | ??????????????????? ???????????? | | ???????????????? ???????????? | | ????????????????##### ;????????????? | | ????????????????##### ; ; ???????????? | | ???????????????????## ;; ?;;???????????? | | ???????????????????## ! ????????????????? | | ???????????????????## ????????????????? | | ???????????????????## ??????????????????? | | ???????????????????## ? ???????????????????? | | ???????????????????????? "???????????????????? | | ????????????????????????????????????????????????? | | ????????????????????????????????????????????????? | | ????????????????????????????????????????????????? | | ????????????????????????????????????????????????? | | ????????????????????????????????????????????????? | | ????????????????????????????????????????????????? | | ???????????????????????? # ############## ##? | | ????????????????????????"# #?########### #? | +----------------------------------------------------+ Best States ------------- Heat Dissipation 28 Energy Generation 10 Energy Capacity 250 Matter Stores 300 Matter Capacity 300 Sight Range 16 Terrain Scan Density 10 Resistance: KI 20 Resistance: TH 20 Resistance: EX 20 Resistance: EM 20 Resistance: I 20 Resistance: S 20 Resistance: P 20 Evasion (%) 55 Offensive Hacking 10 Item Schematics ----------------- None Robot Schematics ------------------ None Fabricated ------------ Nothing Alien Tech Used ----------------- None Achievements -------------- First Step to Greatness Uninvited Guest Challenges ------------ None Game ------ Seed CombatMagneticHammer Manual? 0 Play Time 00:44:56 Cumulative 1.4 hours Start 2024.01.19 @ 18:38:24 End 2024.02.17 @ 02:02:20 Sessions 7 Manual Loads 0 Difficulty Adventurer Special Mode None Game No. 1 Rogue 0 Adventurer 1 Explorer 0 Win Type - Total 0 Types 0/0/0/0/0/0/0/0/0 Lore% 0 Gallery% 1 Achievement% 0 Wizard Run 0 Options --------- ASCII 1 Keyboard 0 Movement Arrows Keybinds 0 Fullscreen 0 Font 16/SmallcapsGlow Map View 76x50 Tactical HUD 0 Map Filters NONE Filters NONE Steam 1 RUN: e3d054b9-6546-448a-966c-b536688bf202